bitfinex/quotes_ETHUSD_20250223
["timestamp","ask_amount","ask_price","bid_price","bid_amount"]
[1740334464260,6.860292,2823.1,2822.9,0.07128636]
[1740334464755,6.860292,2823.1,2822.7,3.54269]
[1740334464981,6.860292,2823.1,2822.8,0.07128636]
[1740334465858,1.0402382,2823.0,2822.8,0.07128636]
[1740334466552,0.7562,2822.9,2822.8,0.07128636]
[1740334466763,0.7562,2822.9,2822.6,3.54272]
[1740334466924,0.7562,2822.9,2822.7,0.0691207]
[1740334467118,0.7562,2822.9,2822.7,3.6118207]
[1740334467858,6.2902382,2823.0,2822.7,3.6118207]
[1740334468055,6.2902382,2823.0,2822.7,0.0691207]
[1740334468233,1.13790402,2822.9,2822.7,0.0691207]
[1740334468933,1.13790402,2822.9,2822.8,0.0691207]
[1740334469128,0.7562,2822.8,2822.7,3.54264]
[1740334469331,0.7562,2822.8,2822.7,0.0691207]
[1740334469642,0.7562,2822.8,2822.4,3.54302]
[1740334469841,2.1791034,2822.8,2822.7,0.0691207]
[1740334470054,2.1791034,2822.8,2822.4,3.54302]
[1740334470273,3.54276,2822.7,2822.2,3.54329]
[1740334470568,3.54276,2822.7,2822.3,0.0691207]
[1740334470728,3.54276,2822.7,2822.2,3.54329]
[1740334471065,4.58299474,2822.7,2822.3,0.0691207]
[1740334471442,4.58299474,2822.7,2822.2,3.54329]
[1740334471642,4.58299474,2822.7,2822.4,0.0691207]
[1740334471839,3.54327,2822.3,2821.9,0.02071]
[1740334472045,0.7941,2822.1,2821.9,3.56436]
[1740334472249,0.7941,2822.1,2822.0,0.0691207]
[1740334472964,0.7941,2822.3,2822.0,3.6126707]
[1740334473164,0.26642709,2822.5,2822.0,0.7850207]
[1740334473332,0.26642709,2822.5,2822.2,3.54321]
[1740334473530,0.26642709,2822.5,2822.3,3.61052285]
[1740334474477,0.26642709,2822.5,2822.3,7.15359285]
[1740334474644,0.26642709,2822.5,2822.3,3.61046285]
[1740334474989,7.09031398,2822.4,2822.3,0.06733285]
[1740334475140,2.75313398,2822.4,2821.9,0.02071]
[1740334475329,4.33768,2822.0,2821.9,0.02071]
[1740334475528,4.33768,2822.0,2821.9,0.08157402]
[1740334475927,6.0441,2822.0,2821.9,0.08157402]
[1740334476129,5.25,2822.0,2821.9,3.62528402]
[1740334477131,5.25,2822.0,2821.9,0.08157402]
[1740334477350,5.902502,2822.0,2821.9,0.08157402]
[1740334477609,10.240182,2822.0,2821.9,0.08157402]
[1740334478602,6.696602,2822.0,2821.9,0.08157402]
[1740334479368,10.240182,2822.0,2821.9,0.08157402]
[1740334480260,10.240182,2822.0,2821.9,0.02071]
[1740334480485,10.240182,2822.0,2821.9,0.08157402]
[1740334480686,10.240182,2822.0,2821.9,0.02071]
[1740334480855,10.240182,2822.0,2821.9,0.08157402]
[1740334481055,10.240182,2822.0,2821.9,0.02071]
[1740334481309,10.95339307,2822.0,2821.9,0.08157402]
[1740334481457,10.95339307,2822.0,2821.9,0.02071]
[1740334481656,10.95339307,2822.0,2821.9,0.08157402]
[1740334481908,10.95339307,2822.0,2821.9,0.02071]
[1740334482066,10.95339307,2822.0,2821.9,0.08157402]
[1740334482269,10.95339307,2822.0,2821.9,0.02071]
[1740334482468,10.95339307,2822.0,2821.9,0.08157402]
[1740334482688,10.95339307,2822.0,2821.9,0.02071]
[1740334485220,11.50339307,2822.0,2821.9,0.02071]
[1740334486811,7.40981307,2822.0,2821.9,0.02071]
[1740334487010,6.75731107,2822.0,2821.9,0.02071]
[1740334487360,10.30089107,2822.0,2821.9,0.08294364]
[1740334488165,6.75731107,2822.0,2821.9,0.08294364]
[1740334488363,6.75731107,2822.0,2821.9,0.02071]
[1740334488622,6.75731107,2822.0,2821.9,0.08294364]
[1740334488817,7.78738918,2822.0,2821.9,0.08294364]
[1740334489382,6.99328918,2822.0,2821.9,0.08294364]
[1740334489621,5.96321107,2822.0,2821.9,0.08294364]
[1740334490832,5.25,2822.0,2821.9,0.08294364]
[1740334491497,6.0754,2822.2,2821.9,0.08294364]
[1740334493357,9.61879,2822.2,2821.9,0.08294364]
[1740334494841,3.54353,2822.1,2821.9,0.08294364]
[1740334495157,1.316232,2822.0,2821.9,0.08294364]
[1740334495323,4.859812,2822.0,2821.9,0.08294364]
[1740334495528,4.859812,2822.0,2821.9,0.02071]
[1740334495723,4.859812,2822.0,2821.9,0.08055974]
[1740334496748,10.109812,2822.0,2821.9,0.08055974]
[1740334497624,10.911212,2822.0,2821.9,0.08055974]
[1740334497929,10.911212,2822.0,2821.9,0.02071]
[1740334501647,11.461212,2822.0,2821.9,0.02071]
[1740334502441,12.17170795,2822.0,2821.9,0.02071]
[1740334503043,11.62170795,2822.0,2821.9,0.02071]
[1740334503213,6.76189595,2822.0,2821.9,0.02071]
[1740334503408,5.96049595,2822.0,2821.9,0.02071]
[1740334503613,5.96049595,2822.0,2821.9,3.62489749]
[1740334503811,9.50407595,2822.0,2821.9,0.08118749]
[1740334504315,5.96049595,2822.0,2821.9,0.08118749]
[1740334504515,5.96049595,2822.0,2821.9,0.02071]
[1740334504720,5.96049595,2822.0,2821.9,0.08118749]
[1740334505563,6.55654555,2822.0,2821.9,0.08118749]
[1740334505715,5.96049595,2822.0,2821.9,0.08118749]
[1740334507012,9.50407595,2822.0,2821.9,0.08118749]
[1740334507759,5.96049595,2822.0,2821.9,0.08118749]
[1740334510223,9.50407595,2822.0,2821.9,0.08118749]
[1740334511083,5.96049595,2822.0,2821.9,0.08118749]
[1740334511245,5.96049595,2822.0,2821.9,0.79708749]
[1740334512482,5.96049595,2822.0,2821.9,4.34079749]
[1740334512619,5.96049595,2822.0,2821.9,0.79708749]
[1740334513055,5.96049595,2822.0,2821.9,4.34079749]
[1740334515289,0.71049595,2822.0,2821.9,4.34079749]
[1740334515654,9.05938709,2822.5,2821.9,4.34079749]
[1740334515655,9.05938709,2822.5,2822.0,3.54346]
[1740334515985,6.96261027,2822.5,2822.3,3.5432]
[1740334516362,6.96261027,2822.5,2822.4,0.05778011]
[1740334517092,0.26642709,2822.5,2822.3,4.25903]
[1740334517391,0.26642709,2822.5,2822.4,0.05778011]
[1740334518289,3.54271,2822.7,2822.4,0.05778011]
[1740334518449,8.79258,2822.8,2822.4,0.05778011]
[1740334519192,8.79258,2822.8,2822.4,3.60084011]
[1740334519393,8.79258,2822.8,2822.4,0.05778011]
[1740334519697,0.27165119,2822.6,2822.4,0.05778011]
[1740334520564,3.54276,2822.7,2822.4,0.05778011]
[1740334522260,8.79258,2822.8,2822.4,0.05778011]
[1740334522476,8.79258,2822.8,2822.4,3.60079011]
[1740334522677,8.79258,2822.8,2822.4,0.05778011]
[1740334523205,6.0196,2823.2,2822.6,0.7159]
[1740334523504,3.54227,2823.1,2822.7,0.057484]
[1740334523991,6.0196,2823.2,2822.7,3.600184]
[1740334524297,6.0196,2823.2,2822.7,0.057484]
[1740334524497,6.0196,2823.2,2822.8,3.5425]
[1740334525067,6.0196,2823.2,2822.9,0.057484]
[1740334525269,5.25,2823.2,2822.9,3.599914]
[1740334525464,5.25,2823.2,2823.0,3.54231]
[1740334526187,5.25,2823.2,2823.1,0.057484]
[1740334526378,5.25,2823.3,2823.1,0.057484]
[1740334526779,0.26371521,2823.2,2823.1,0.057484]
[1740334527194,0.26371521,2823.2,2823.1,3.599684]
[1740334527869,0.26371521,2823.2,2823.1,0.057484]
[1740334528293,3.80578521,2823.2,2823.1,0.057484]
[1740334528495,12.7535825,2823.2,2823.1,0.057484]
[1740334528667,12.7535825,2823.2,2822.2,3.54325]
[1740334528668,4.37048,2822.8,2822.2,3.54325]
[1740334529114,3.54274,2822.7,2822.3,0.055431]
[1740334529407,3.54274,2822.7,2822.2,3.54325]
[1740334529408,3.54284,2822.6,2822.2,3.54325]
[1740334529907,3.54284,2822.6,2822.3,0.0526938]
[1740334530402,3.54284,2822.6,2822.1,0.7159]
[1740334530403,3.54284,2822.6,2822.4,0.0526938]
[1740334530610,4.504904,2822.6,2822.1,0.7159]
[1740334530809,5.25,2822.7,2822.2,3.5960138]
[1740334530998,5.25,2822.7,2822.4,3.54301]
[1740334531309,5.25,2822.7,2822.5,3.54286]
[1740334531472,5.25,2822.7,2822.6,3.54283]
[1740334531874,1.04661181,2823.3,2822.5,0.7159]
[1740334532083,1.04661181,2823.3,2822.6,0.0526938]
[1740334532084,2.75313398,2823.2,2822.6,0.0526938]
[1740334532303,3.54246,2822.9,2822.6,0.10838933]
[1740334532469,0.785,2822.8,2822.6,0.10838933]
[1740334532674,3.5427,2822.7,2822.6,0.10838933]
[1740334532887,7.87038,2822.8,2822.3,3.54319]
[1740334533087,4.32769,2822.8,2822.6,0.10825875]
[1740334533404,5.6397,2822.8,2822.3,3.54319]
[1740334534005,5.6397,2822.8,2822.4,0.10825875]
[1740334534207,5.25,2822.9,2822.4,0.10825875]
[1740334534374,5.25,2822.9,2822.7,0.7159]
[1740334534787,5.25,2822.9,2822.8,0.10825875]
[1740334536879,8.79245,2822.9,2822.8,0.10825875]
[1740334537282,3.54264,2822.8,2822.4,0.7159]
[1740334537492,3.54271,2822.7,2822.4,0.7159]
[1740334537697,3.54293,2822.6,2822.2,0.7159]
[1740334538000,3.54296,2822.5,2822.2,0.7159]
[1740334538210,8.79283,2822.6,2822.2,3.54332]
[1740334538407,8.79283,2822.6,2822.0,4.25941]
[1740334538826,3.54301,2822.5,2822.0,4.25941]
[1740334539032,3.54295,2822.5,2822.1,3.54344]
[1740334539215,3.54316,2822.4,2822.0,0.7159]
[1740334539416,3.54295,2822.5,2821.9,0.02071]
[1740334539417,1.312066,2822.5,2821.9,0.02071]
[1740334539622,3.54348,2822.1,2821.9,0.02071]
[1740334540543,4.32834,2822.2,2821.9,0.02071]
[1740334541910,0.26265139,2822.1,2821.9,0.02071]
[1740334545515,3.80612139,2822.1,2821.9,0.02071]
[1740334546823,0.26265139,2822.1,2821.9,0.02071]
[1740334547151,3.54358,2822.0,2821.9,0.02071]
[1740334547618,3.54358,2822.0,2821.9,0.1284638]
[1740334549842,3.80616139,2822.1,2821.9,0.1284638]
[1740334550052,0.26265139,2822.1,2821.9,0.1284638]
[1740334550461,0.26265139,2822.1,2822.0,3.54358]
[1740334550661,0.26265139,2822.1,2822.0,3.64872184]
[1740334550955,5.25,2822.3,2822.0,0.10514184]
[1740334551129,5.25,2822.3,2822.2,3.54333]
[1740334551324,5.25,2822.3,2822.0,0.10514184]
[1740334551525,5.25,2822.3,2821.9,0.73661]
[1740334551737,5.25,2822.3,2822.1,0.10514184]
[1740334551946,5.25,2822.3,2821.9,4.2803]
[1740334552367,5.25,2822.3,2822.0,0.10514184]
[1740334552763,5.25,2822.3,2822.1,3.5434]
[1740334552956,5.25,2822.3,2822.2,3.54333]
[1740334553154,5.51492597,2822.4,2822.1,3.54344]
[1740334553449,5.51492597,2822.4,2822.2,0.1050025]
[1740334553851,5.25,2822.4,2822.3,4.2591]
[1740334554387,5.25,2822.4,2822.3,0.8209025]
[1740334555168,5.25,2822.4,2822.3,4.3641025]
[1740334555366,5.25,2822.4,2822.3,0.8209025]
[1740334556052,10.5203006,2822.4,2822.3,0.1050025]
[1740334556471,10.5203006,2822.4,2821.9,0.02071]
[1740334556472,3.54355,2822.1,2821.9,0.02071]
[1740334556657,3.54355,2822.1,2822.0,0.10490672]
[1740334557959,3.54358,2822.0,2821.9,0.02071]
[1740334560987,5.25,2822.1,2821.9,0.02071]
[1740334561363,8.79347,2822.1,2821.9,0.02071]
[1740334561562,5.25,2822.1,2821.9,0.02071]
[1740334563048,5.25,2822.1,2822.0,4.25948]
[1740334564752,5.25,2822.1,2822.0,0.7159]
[1740334565011,3.54316,2822.4,2821.9,0.02071]
[1740334565179,4.4492526,2822.3,2821.9,0.02071]
[1740334565501,4.4492526,2822.3,2822.0,0.10495898]
[1740334566300,0.9059526,2822.3,2822.0,3.64846898]
[1740334566596,9.05938602,2822.5,2822.0,3.64846898]
[1740334567270,9.05938602,2822.5,2822.1,3.54345]
[1740334567599,3.54315,2822.4,2822.2,0.1049851]
[1740334567980,3.54315,2822.4,2821.9,3.56441]
[1740334568184,3.54315,2822.4,2822.3,0.1049851]
[1740334568499,4.8034036,2822.4,2822.3,0.1049851]
[1740334568675,4.8034036,2822.4,2821.9,3.56441]
[1740334568882,3.54315,2822.4,2822.0,0.1049851]
[1740334569196,9.05938602,2822.5,2822.0,3.6484851]
[1740334569363,5.51636602,2822.5,2822.1,3.54346]
[1740334569716,5.51636602,2822.5,2822.2,3.54331]
[1740334570012,5.51636602,2822.5,2822.3,3.54314]
[1740334570320,5.51636602,2822.5,2822.2,3.54332]
[1740334570533,0.8213,2822.7,2822.4,0.1049851]
[1740334570681,5.25,2822.9,2822.6,3.54271]
[1740334571014,5.25,2822.9,2822.7,0.1049851]
[1740334571270,6.0407,2823.0,2822.7,0.1049851]
[1740334571425,6.0407,2823.0,2822.6,3.54282]
[1740334571628,0.26245063,2822.9,2822.8,0.1049851]
[1740334572099,5.25,2823.0,2822.6,3.54275]
[1740334572293,5.25,2823.0,2822.7,0.10420142]
[1740334572504,8.79234,2823.0,2822.7,0.10420142]
[1740334572731,8.79234,2823.0,2822.5,4.25885]
[1740334573029,8.79234,2823.0,2822.8,0.10420142]
[1740334573332,8.79234,2823.0,2822.9,0.10420142]
[1740334573529,9.7357644,2823.0,2822.9,0.10420142]
[1740334573769,9.7357644,2823.0,2822.5,0.7159]
[1740334573770,3.54255,2822.9,2822.5,0.7159]
[1740334573890,3.54271,2822.7,2822.2,0.7159]
[1740334574085,3.18455498,2822.7,2822.0,0.7159]
[1740334574328,3.54339,2822.2,2821.9,0.02071]
[1740334574720,8.79339,2822.2,2821.9,0.02071]
[1740334575065,3.54358,2822.0,2821.9,0.02071]
[1740334575243,9.56508,2822.0,2821.9,0.02071]
[1740334575439,11.1512474,2822.0,2821.9,0.02071]
[1740334575985,11.7012474,2822.0,2821.9,0.02071]
[1740334576187,7.08766,2821.8,2820.5,0.7159]
[1740334576436,3.54505,2820.9,2820.5,0.7159]
[1740334576610,3.54516,2820.8,2820.5,0.7159]
[1740334577044,8.79505,2820.9,2820.5,0.7159]
[1740334577045,5.25,2820.9,2820.6,3.54523]
[1740334577250,6.0215,2820.9,2820.3,0.9759]
[1740334577386,3.54512,2820.8,2820.3,4.52157]
[1740334577726,3.54512,2820.8,2820.3,0.7159]
[1740334578230,6.978137,2820.9,2820.4,3.54555]
[1740334578743,6.978137,2820.9,2820.3,3.7159]
[1740334579034,3.54512,2820.8,2820.3,7.26161]
[1740334579237,6.978137,2820.9,2820.3,7.26161]
[1740334579437,6.978137,2820.9,2820.4,3.5455]
[1740334579636,5.25,2820.9,2820.8,3.54509]
[1740334579838,0.26679347,2821.1,2820.8,3.54509]
[1740334580735,0.26679347,2821.1,2820.9,0.09465419]
[1740334581140,0.26679347,2821.1,2821.0,3.54484]
[1740334581284,0.26679347,2821.1,2820.9,0.09465419]
[1740334581490,0.81847282,2821.1,2820.6,3.54527]
[1740334581817,0.81847282,2821.1,2821.0,0.09465419]
[1740334582019,0.81847282,2821.1,2820.8,3.54507]
[1740334582335,0.7623,2821.0,2820.2,3.54577]
[1740334582502,4.05758628,2820.9,2820.3,3.54562]
[1740334582708,4.05758628,2820.9,2820.4,3.0]
[1740334583111,0.51255628,2820.9,2820.5,3.54539]
[1740334583313,4.05758628,2820.9,2820.4,3.0]
[1740334583505,4.05758628,2820.9,2820.4,6.54557]
[1740334583858,0.48198863,2820.8,2820.4,6.54557]
[1740334584030,9.27710863,2820.8,2820.3,3.54563]
[1740334584590,3.54536,2820.6,2820.1,4.26185]
[1740334584792,0.7623,2820.5,2820.0,6.54609]
[1740334585039,5.0138494,2820.5,2820.0,3.0]
[1740334585399,1.4683794,2820.5,2820.1,3.54594]
[1740334586546,1.4683794,2820.5,2819.6,3.80658]
[1740334586547,0.7589,2820.2,2819.4,3.54675]
[1740334586692,0.7589,2819.7,2819.2,4.26293]
[1740334586893,0.7589,2819.7,2819.3,3.54694]
[1740334586894,6.0089,2819.7,2819.3,3.54694]
[1740334587332,6.0089,2819.7,2819.1,0.005]
[1740334587638,3.54705,2819.3,2819.1,0.005]
[1740334587798,0.6300184,2819.2,2819.1,0.005]
[1740334588343,8.76203398,2819.7,2819.1,0.005]
[1740334588543,0.7589,2819.6,2819.1,0.005]
[1740334588695,0.7589,2819.6,2819.4,3.5468]
[1740334589043,0.7589,2819.6,2819.5,3.54672]
[1740334590439,5.25,2819.7,2819.6,3.5466]
[1740334590811,5.25,2820.1,2820.0,3.54609]
[1740334591009,6.15258457,2820.1,2820.0,3.54609]
[1740334591189,5.25,2820.1,2820.0,3.54609]
[1740334592305,5.25,2820.2,2820.1,3.54597]
[1740334593732,5.25,2820.2,2820.1,4.26187]
[1740334593953,5.25,2820.7,2820.6,3.54534]
[1740334594161,6.0677,2820.8,2820.5,3.54545]
[1740334594358,6.0677,2820.8,2820.6,3.54526]
[1740334594660,6.9497834,2820.8,2820.6,3.54526]
[1740334594861,7.2138497,2820.8,2820.6,3.54526]
[1740334595163,7.2138497,2820.8,2820.5,3.54539]
[1740334595533,7.2138497,2820.8,2820.6,3.63925037]
[1740334596459,6.0677,2820.8,2820.6,3.63925037]
[1740334596611,5.25,2820.8,2820.7,3.54521]
[1740334597116,5.25,2820.8,2820.7,3.63918037]
[1740334600760,5.25,2820.9,2820.7,3.63918037]
[1740334602161,5.25,2820.9,2820.8,3.54509]
[1740334602343,5.25,2820.9,2820.7,3.63918037]
[1740334602541,5.25,2820.9,2820.8,0.09284523]
[1740334602949,5.25,2820.9,2820.7,3.54511]
[1740334603147,5.25,2820.9,2820.8,0.09284523]
[1740334603384,6.1314434,2820.9,2820.8,0.09284523]
[1740334603683,6.1314434,2820.9,2820.8,0.09333333]
[1740334603841,6.1314434,2820.9,2820.7,3.54514]
[1740334604029,6.1314434,2820.9,2820.8,0.09010784]
[1740334604232,6.1314434,2820.9,2820.8,3.63519784]
[1740334604426,6.1314434,2820.9,2820.8,3.54509]
[1740334604733,6.1314434,2820.9,2820.8,3.63519784]
[1740334604929,6.1314434,2820.9,2820.8,0.09010784]
[1740334605172,6.1314434,2820.9,2820.7,3.54516]
[1740334605386,6.1314434,2820.9,2820.8,0.09010784]
[1740334605545,6.1314434,2820.9,2820.8,3.63519784]
[1740334605753,6.1314434,2820.9,2820.8,3.54509]
[1740334605999,5.25,2820.9,2820.8,3.63519784]
[1740334606295,5.25,2821.3,2821.2,3.54459]
[1740334606453,1.065152,2821.8,2821.0,3.54479]
[1740334606653,5.25,2821.9,2821.4,7.08849]
[1740334606855,1.26206993,2821.8,2821.5,0.08972483]
[1740334607860,1.26206993,2821.8,2821.6,3.544]
[1740334608196,5.25,2821.9,2821.6,3.544]
[1740334608343,5.25,2821.9,2821.7,0.08972483]
[1740334610508,8.79375,2821.9,2821.5,3.54419]
[1740334610671,5.25,2821.9,2821.6,0.08972483]
[1740334611004,5.25,2821.9,2821.5,3.54415]
[1740334611301,5.85576,2821.9,2821.6,0.08972483]
[1740334612402,9.39947,2821.9,2821.6,0.08972483]
[1740334612698,5.85576,2821.9,2821.6,0.08972483]
[1740334612886,5.25,2821.9,2821.5,3.54414]
[1740334613218,5.25,2821.9,2821.6,0.08972483]
[1740334614081,5.25,2821.9,2821.6,3.63380483]
[1740334614411,5.25,2821.9,2821.8,3.54383]
[1740334614783,5.25,2821.9,2821.8,3.63258877]
[1740334615413,4.25,2821.9,2821.8,3.63258877]
[1740334615765,4.25,2821.9,2821.8,0.08875877]
[1740334616071,4.25,2821.9,2821.5,3.54409]
[1740334616286,4.25,2821.9,2821.6,0.08872397]
[1740334616712,4.25,2821.9,2821.6,3.63277397]
[1740334617796,4.25,2821.9,2821.6,0.08872397]
[1740334618117,3.54396,2821.7,2821.2,3.5445]
[1740334618269,4.3593,2821.8,2821.3,0.08872397]
[1740334618468,3.54409,2821.6,2821.2,3.5445]
[1740334618664,3.54409,2821.6,2821.3,0.08872397]
[1740334618869,8.6093,2821.8,2821.3,3.54446]
[1740334618870,3.54397,2821.7,2821.3,3.54446]
[1740334619115,5.0654,2821.8,2821.3,3.54446]
[1740334619116,5.0654,2821.8,2821.4,3.63305397]
[1740334619417,5.0654,2821.8,2821.5,3.54415]
[1740334619803,5.0654,2821.8,2821.4,3.54427]
[1740334620117,3.54396,2821.7,2821.3,0.7159]
[1740334620421,3.54409,2821.6,2821.4,0.08872397]
[1740334620769,8.60931,2821.8,2821.3,3.54443]
[1740334620971,8.60931,2821.8,2821.5,0.08872397]
[1740334621213,8.60931,2821.8,2821.3,3.54443]
[1740334621424,8.60931,2821.8,2821.6,0.08872397]
[1740334621726,8.60931,2821.8,2821.7,3.63268397]
[1740334621727,4.25,2821.8,2821.7,3.63268397]
[1740334622072,0.8029,2822.4,2822.1,3.54338]
[1740334622273,4.25,2822.5,2822.2,0.08882838]
[1740334622514,3.5432,2822.3,2822.2,0.08882838]
[1740334622822,0.8029,2822.2,2821.7,3.54387]
[1740334622976,8.59595,2822.5,2822.0,3.54348]
[1740334623170,8.59595,2822.5,2821.8,0.08882838]
[1740334623171,3.54328,2822.3,2821.8,0.08882838]
[1740334623377,3.54335,2822.2,2822.1,0.08847166]
[1740334623589,7.08678,2822.2,2821.7,6.54396]
[1740334623796,3.54335,2822.2,2822.1,0.08847166]
[1740334624003,3.54335,2822.2,2821.7,6.54396]
[1740334624486,3.54348,2822.1,2821.8,0.08847166]
[1740334624711,2.75313398,2822.3,2821.7,3.0]
[1740334624885,3.54335,2822.2,2821.8,0.08847166]
[1740334625089,3.54335,2822.2,2821.7,6.54395]
[1740334625326,6.29645398,2822.3,2821.8,3.63229166]
[1740334625493,6.29645398,2822.3,2821.8,4.67592383]
[1740334625695,6.29645398,2822.3,2821.8,8.21967383]
[1740334625919,3.54333,2822.2,2821.8,1.13210383]
[1740334626073,6.29645398,2822.3,2821.8,3.63230166]
[1740334626427,9.83973398,2822.3,2821.8,3.63230166]
[1740334626593,6.29641398,2822.3,2821.8,3.63230166]
[1740334627106,2.75313398,2822.3,2822.0,3.54356]
[1740334627310,8.59594,2822.5,2822.1,0.08806277]
[1740334627311,4.25,2822.5,2822.1,0.08806277]
[1740334627475,4.25,2822.5,2822.1,3.63140277]
[1740334628077,4.25,2822.5,2822.2,3.54332]
[1740334628294,4.25,2822.5,2822.3,3.63114968]
[1740334628692,4.25,2822.5,2822.3,7.17426968]
[1740334628886,4.25,2822.5,2822.3,4.34849665]
[1740334629101,4.25,2822.5,2822.3,0.08794968]
[1740334629293,7.79296,2822.5,2822.0,7.2594]
[1740334629494,7.79296,2822.5,2822.1,0.08794968]
[1740334629716,3.54308,2822.4,2822.1,0.08794968]
[1740334630085,4.25,2822.5,2822.1,0.08794968]
[1740334630421,7.79296,2822.5,2822.1,0.08794968]
[1740334632621,3.54333,2822.2,2822.1,0.08794968]
[1740334632991,0.8327,2822.2,2821.3,0.9759]
[1740334633213,4.37675,2821.7,2821.0,4.26068]
[1740334633406,4.37675,2821.7,2821.1,3.0]
[1740334633727,3.54427,2821.5,2821.0,4.26068]
[1740334633907,3.54439,2821.4,2821.0,0.7159]
[1740334634421,2.75313398,2821.2,2820.4,0.7159]
[1740334634584,3.54491,2821.0,2820.4,4.26139]
[1740334634785,7.08984,2821.0,2820.4,4.26139]
[1740334635026,3.54491,2821.0,2820.4,4.26139]
[1740334635232,10.54778398,2821.2,2820.6,3.54526]
[1740334635400,3.54478,2821.1,2820.6,3.54526]
[1740334636122,10.54778398,2821.2,2820.6,3.54526]
[1740334636433,10.54772398,2821.2,2820.7,3.5452]
[1740334637328,4.25,2821.2,2820.4,0.7159]
[1740334637518,4.25,2821.2,2821.1,3.54471]
[1740334637716,7.79436,2821.4,2820.9,0.7159]
[1740334637902,7.79436,2821.4,2820.9,4.2608]
[1740334638545,4.25,2821.4,2821.0,3.54477]
[1740334639166,10.54697398,2821.8,2821.3,3.54446]
[1740334639424,3.54399,2821.7,2821.2,3.54458]
[1740334639743,11.71177252,2821.8,2821.3,3.54441]
[1740334640339,4.25,2821.8,2821.6,3.54406]
[1740334640637,4.25,2821.8,2821.7,3.62054311]
[1740334640940,4.25,2822.1,2821.7,0.07658311]
[1740334641237,4.25,2822.1,2821.9,3.5437]
[1740334641603,4.25,2822.1,2822.0,3.62016311]
[1740334641808,4.25,2822.3,2822.0,3.62016311]
[1740334642020,4.25,2822.3,2822.1,3.54346]
[1740334642194,4.25,2822.3,2822.2,3.54333]
[1740334642632,4.25,2822.3,2822.2,3.61991311]
[1740334643136,0.26814523,2822.6,2822.4,3.54301]
[1740334643309,4.25,2822.7,2822.3,3.5431]
[1740334643511,4.25,2822.7,2822.4,3.54301]
[1740334643713,6.42634985,2823.0,2822.5,0.07658311]
[1740334644037,8.20678523,2823.0,2822.5,3.61943311]
[1740334644203,3.54275,2822.7,2822.5,0.07658311]
[1740334644411,8.20684523,2823.0,2822.5,0.07658311]
[1740334644607,3.54253,2822.9,2822.4,3.54306]
[1740334644809,3.54258,2822.8,2822.6,0.07658311]
[1740334645024,3.54245,2822.9,2822.4,3.54306]
[1740334645556,2.75313398,2822.8,2822.5,0.07658311]
[1740334645695,6.29604398,2822.6,2821.7,4.5198]
[1740334645899,3.54318,2822.4,2821.8,3.61964033]
[1740334646663,7.79295,2822.5,2821.8,3.07588033]
[1740334646664,4.25,2822.5,2821.8,3.07588033]
[1740334646933,2.75313398,2822.3,2821.9,3.54362]
[1740334647139,2.75313398,2822.3,2822.0,0.07314522]
[1740334647437,4.25,2822.4,2822.0,3.61668522]
[1740334647597,4.25,2822.4,2822.2,3.54332]
[1740334647930,4.25,2822.4,2822.1,3.54337]
[1740334648124,4.25,2822.4,2822.2,0.07314522]
[1740334649094,4.25,2822.4,2822.0,3.54358]
[1740334649340,4.25,2822.4,2821.8,3.7159]
[1740334649341,4.25,2822.4,2822.1,3.61660522]
[1740334650026,4.25,2822.4,2822.1,0.07314522]
[1740334650343,4.25,2822.4,2822.2,3.54323]
[1740334650643,4.25,2822.4,2822.3,0.07314522]
[1740334651042,4.25,2822.4,2822.3,3.5432]
[1740334651237,4.25,2822.4,2822.3,3.61634522]
[1740334651738,4.65959193,2822.9,2822.4,3.54308]
[1740334651915,8.20210193,2822.9,2822.3,4.2591]
[1740334652115,4.25,2823.0,2822.8,3.54248]
[1740334652307,4.25,2823.0,2822.8,7.08496]
[1740334652508,4.25,2823.0,2822.9,3.61559522]
[1740334652742,2.75313398,2823.2,2823.0,3.54225]
[1740334652944,2.75313398,2823.2,2822.9,3.54245]
[1740334653241,4.25,2823.4,2823.1,3.54219]
[1740334653739,4.25,2823.4,2823.2,0.07314522]
[1740334653908,4.25,2823.4,2822.9,3.54235]
[1740334654242,3.54202,2823.3,2823.0,0.07314522]
[1740334654542,3.54202,2823.3,2822.8,4.25844]
[1740334654840,8.0534316,2823.4,2822.9,0.07314522]
[1740334655146,3.54197,2823.3,2822.9,0.07314522]
[1740334656316,8.60090056,2823.3,2822.9,0.07314522]
[1740334656524,3.54233,2823.0,2822.9,0.07314522]
[1740334656742,3.54245,2822.9,2822.2,4.25922]
[1740334656906,4.25,2822.9,2822.5,3.54285]
[1740334657307,4.25,2822.9,2822.6,0.07278965]
[1740334657853,4.25,2822.9,2822.6,3.61554965]
[1740334658356,4.25,2822.9,2822.8,3.54258]
[1740334658511,2.75313398,2823.2,2822.8,3.61445003]
[1740334659172,2.75313398,2823.2,2822.8,0.07187003]
[1740334659351,3.54227,2823.1,2822.8,0.07187003]
[1740334659605,6.29521398,2823.2,2822.7,3.54265]
[1740334659806,6.29521398,2823.2,2822.9,0.07187003]
[1740334660147,6.29521398,2823.2,2823.0,0.07187003]
[1740334660352,5.0701,2823.3,2822.9,3.54241]
[1740334660555,4.25,2823.3,2823.1,3.5422]
[1740334661059,4.25,2823.3,2823.2,3.61394003]
[1740334661235,4.25,2823.3,2823.2,0.07187003]
[1740334661607,4.25,2823.3,2822.9,4.25829]
[1740334661806,4.25,2823.3,2823.2,0.07187003]
[1740334662041,4.25,2823.3,2823.2,3.54207]
[1740334662242,4.25,2823.3,2823.2,3.61374058]
[1740334662826,4.25,2823.3,2823.2,0.07167058]
[1740334663011,2.75313398,2823.6,2823.2,3.61366058]
[1740334663360,2.75313398,2823.6,2823.3,0.07167058]
[1740334663509,2.75313398,2823.6,2823.2,3.54199]
[1740334663712,2.75313398,2823.6,2823.3,0.07167058]